fUSD/lending_fUSD_20240327
["ID","MTS","AMOUNT","RATE_DAILY","PERIOD"]
[320795799,1711561856433,-460.07,0.000541,30]
[320795800,1711561856443,-621.73,0.000541,120]
[320795801,1711561856454,-72230.34047655,0.00054101,30]
[320795802,1711561856464,-1326.55063252,0.00054102,30]
[320795803,1711561856477,-150.50617537,0.00054103,60]
[320795804,1711561856492,-43211.59343509,0.00054103,30]
[320795805,1711561856502,-490.18421455,0.00054104,30]
[320795806,1711561856511,-173.78457562,0.00054111,30]
[320795807,1711561856523,-176.96227464,0.00054111,30]
[320795808,1711561856534,-190.67491442,0.00054118,30]
[320795809,1711561856545,-318.86786748,0.00054119,60]
[320795810,1711561856555,-161.11878669,0.0005412,30]
[320795811,1711561856568,-173.78457562,0.00054125,30]
[320795812,1711561856579,-151.0,0.00054127,60]
[320795813,1711561856588,-151.0,0.00054127,60]
[320795814,1711561856597,-151.0,0.00054127,120]
[320795815,1711561856607,-151.0,0.00054127,30]
[320795816,1711561856617,-151.0,0.00054127,30]
[320795817,1711561856627,-151.0,0.00054127,120]
[320795818,1711561856637,-151.0,0.00054127,120]
[320795819,1711561856646,-151.0,0.00054127,120]
[320795820,1711561856656,-204.288628,0.00054127,120]
[320795821,1711561856666,-204.288628,0.00054127,120]
[320795822,1711561856675,-191.520487,0.00054127,120]
[320795823,1711561856685,-151.0,0.00054127,120]
[320795824,1711561856695,-191.520487,0.00054127,120]
[320795825,1711561856704,-250.635261,0.00054127,120]
[320795826,1711561856714,-250.635261,0.00054127,120]
[320795827,1711561856724,-151.576563,0.00054127,120]
[320795828,1711561856733,-240.242065,0.00054127,120]
[320795829,1711561856742,-151.576563,0.00054127,120]
[320795830,1711561856752,-240.242065,0.00054127,120]
[320795831,1711561856761,-151.0,0.00054127,120]
[320795832,1711561856771,-342.284432,0.00054127,120]
[320795833,1711561856781,-342.284432,0.00054127,120]
[320795834,1711561856791,-302.296389,0.00054127,120]
[320795835,1711561856801,-302.296389,0.00054127,120]
[320795836,1711561856810,-151.0,0.00054127,120]
[320795837,1711561856820,-151.0,0.00054127,120]
[320795838,1711561856829,-151.0,0.00054127,120]
[320795839,1711561856840,-151.0,0.00054127,120]
[320795840,1711561856852,-151.0,0.00054127,120]
[320795841,1711561856862,-151.0,0.00054127,120]
[320795842,1711561856871,-151.0,0.00054127,120]
[320795843,1711561856882,-151.0,0.00054127,120]
[320795844,1711561856892,-151.0,0.00054127,30]
[320795845,1711561856901,-479.754063,0.00054127,120]
[320795846,1711561856911,-151.0,0.00054127,120]
[320795847,1711561856921,-479.754063,0.00054127,120]
[320795848,1711561856931,-151.0,0.00054127,120]
[320795849,1711561856943,-151.0,0.00054127,120]
[320795850,1711561856953,-151.0,0.00054127,120]
[320795851,1711561856963,-151.0,0.00054127,7]
[320795852,1711561856973,-151.0,0.00054127,120]
[320795853,1711561856983,-151.0,0.00054127,120]
[320795854,1711561856993,-294.69014,0.00054127,120]
[320795855,1711561857002,-151.0,0.00054127,120]
[320795856,1711561857012,-158.036351,0.00054127,120]
[320795857,1711561857022,-158.036351,0.00054127,120]
[320795858,1711561857032,-193.636468,0.00054127,120]
[320795859,1711561857042,-427200.45055556,0.00054127,30]
[320795860,1711561857052,-483.35636006,0.0005413,30]
[320795861,1711561857061,-490.18421455,0.0005413,30]
[320795862,1711561857071,-1326.55063252,0.00054133,30]
[320795863,1711561857080,-490.18421455,0.00054138,30]
[320795864,1711561857090,-265.3101265,0.00054138,30]
[320795865,1711561857100,-4388.45672278,0.00054138,30]
[320795866,1711561857110,-150.0,0.00054138,14]
[320795867,1711561857120,-427200.45055556,0.00054139,30]
[320795868,1711561857133,-181.879668,0.00054139,120]
[320795869,1711561857142,-151.0,0.00054139,120]
[320795870,1711561857152,-151.0,0.00054139,120]
[320795871,1711561857162,-18485.28708311,0.0005414,30]
[320795872,1711561857173,-72230.34047655,0.00054142,30]
[320795873,1711561857183,-1264.10998141,0.00054146,120]
[320795874,1711561857194,-1264.10998141,0.00054146,120]
[320795875,1711561857203,-1264.10998141,0.00054146,120]
[320795876,1711561857212,-1264.10998141,0.00054146,120]
[320795877,1711561857222,-1264.10998141,0.00054146,120]
[320795878,1711561857232,-1264.10998141,0.00054146,120]
[320795879,1711561857242,-1264.10998141,0.00054146,120]
[320795880,1711561857253,-1264.10998141,0.00054146,120]
[320795881,1711561857262,-1264.10998141,0.00054146,120]
[320795882,1711561857272,-1264.10998141,0.00054146,120]
[320795883,1711561857281,-1264.10998141,0.00054146,120]
[320795884,1711561857291,-1264.10998141,0.00054146,120]
[320795885,1711561857300,-1264.10998141,0.00054146,120]
[320795886,1711561857310,-1264.10998141,0.00054146,120]
[320795887,1711561857320,-1264.10998141,0.00054146,120]
[320795888,1711561857331,-1264.10998141,0.00054146,120]
[320795889,1711561857342,-1264.10998141,0.00054146,120]
[320795890,1711561857352,-1264.10998141,0.00054146,120]
[320795891,1711561857363,-1264.10998141,0.00054146,120]
[320795892,1711561857373,-1264.6,0.00054146,120]
[320795893,1711561857382,-574.44903757,0.00054146,120]
[320795894,1711561857391,-574.44903757,0.00054146,120]
[320795895,1711561857401,-574.44903757,0.00054146,120]
[320795896,1711561857410,-574.44903757,0.00054146,120]
[320795897,1711561857420,-574.44903757,0.00054146,120]
[320795898,1711561857430,-574.44903757,0.00054146,120]
[320795899,1711561857440,-574.44903757,0.00054146,120]
[320795900,1711561857450,-574.44903757,0.00054146,120]
[320795901,1711561857461,-574.44903757,0.00054146,120]
[320795902,1711561857471,-574.44903757,0.00054146,120]
[320795903,1711561857481,-574.44903757,0.00054146,120]
[320795904,1711561857491,-574.44903757,0.00054146,120]
[320795905,1711561857501,-574.44903757,0.00054146,120]
[320795906,1711561857511,-574.44903757,0.00054146,120]
[320795907,1711561857522,-574.44903757,0.00054146,120]
[320795908,1711561857532,-574.44903757,0.00054146,120]
[320795909,1711561857541,-574.44903757,0.00054146,120]
[320795910,1711561857551,-574.44903757,0.00054146,120]
[320795911,1711561857561,-574.44903757,0.00054146,120]
[320795912,1711561857570,-574.94,0.00054146,120]
[320795913,1711561857581,-186.36711234,0.00054146,120]
[320795914,1711561857590,-186.36711234,0.00054146,120]
[320795915,1711561857601,-186.36711234,0.00054146,120]
[320795916,1711561857611,-186.36711234,0.00054146,120]
[320795917,1711561857620,-186.36711234,0.00054146,120]
[320795918,1711561857630,-186.36711234,0.00054146,120]
[320795919,1711561857639,-186.36711234,0.00054146,120]
[320795920,1711561857649,-186.36711234,0.00054146,120]
[320795921,1711561857659,-186.36711234,0.00054146,120]
[320795922,1711561857668,-186.36711234,0.00054146,120]
[320795923,1711561857678,-186.36711234,0.00054146,120]
[320795924,1711561857687,-186.36711234,0.00054146,120]
[320795925,1711561857697,-186.36711234,0.00054146,120]
[320795926,1711561857707,-186.36711234,0.00054146,120]
[320795927,1711561857717,-186.36711234,0.00054146,120]
[320795928,1711561857726,-186.36711234,0.00054146,120]
[320795929,1711561857736,-186.36711234,0.00054146,120]
[320795930,1711561857746,-186.36711234,0.00054146,120]
[320795931,1711561857755,-186.36711234,0.00054146,120]
[320795932,1711561857765,-186.86,0.00054146,120]
[320795933,1711561857774,-530.27984571,0.00054146,120]
[320795934,1711561857784,-530.27984571,0.00054146,120]
[320795935,1711561857793,-530.27984571,0.00054146,120]
[320795936,1711561857804,-530.27984571,0.00054146,120]
[320795937,1711561857815,-530.27984571,0.00054146,120]
[320795938,1711561857824,-530.27984571,0.00054146,120]
[320795939,1711561857833,-530.27984571,0.00054146,120]
[320795940,1711561857846,-530.27984571,0.00054146,120]
[320795941,1711561857856,-530.27984571,0.00054146,120]
[320795942,1711561857866,-530.27984571,0.00054146,120]
[320795943,1711561857875,-530.27984571,0.00054146,120]
[320795944,1711561857885,-530.27984571,0.00054146,120]
[320795945,1711561857895,-530.27984571,0.00054146,120]
[320795946,1711561857905,-530.27984571,0.00054146,120]
[320795947,1711561857914,-530.27984571,0.00054146,120]
[320795948,1711561857924,-530.27984571,0.00054146,120]
[320795949,1711561857935,-530.27984571,0.00054146,120]
[320795950,1711561857945,-530.27984571,0.00054146,120]
[320795951,1711561857954,-530.27984571,0.00054146,120]
[320795952,1711561857963,-530.77,0.00054146,120]
[320795953,1711561857973,-217.85965091,0.00054147,30]
[320795954,1711561857982,-18485.28708311,0.00054147,30]
[320795955,1711561857992,-72230.34047655,0.0005415,30]
[320795956,1711561858002,-18485.28708311,0.00054151,30]
[320795957,1711561858011,-161.11878669,0.00054153,30]
[320795958,1711561858020,-176.96227464,0.00054154,30]
[320795959,1711561858030,-43211.59343509,0.00054163,30]
[320795960,1711561858039,-1326.55063252,0.00054169,30]
[320795961,1711561858049,-43211.59343509,0.0005417,30]
[320795962,1711561858058,-176.96227464,0.00054171,30]
[320795963,1711561858068,-190.67491442,0.00054172,30]
[320795964,1711561858078,-72230.34047655,0.00054174,30]
[320795965,1711561858088,-158.036351,0.00054174,120]
[320795966,1711561858097,-158.036351,0.00054174,120]
[320795967,1711561858107,-483.35636006,0.00054182,30]
[320795968,1711561858116,-265.3101265,0.00054182,30]
[320795969,1711561858126,-8000.0,0.00054185,90]
[320795970,1711561858135,-1291.2000281,0.00054188,30]
[320795971,1711561858144,-151.0,0.00054188,60]
[320795972,1711561858154,-157.0,0.00054188,60]
[320795973,1711561858163,-151.0,0.00054188,30]
[320795974,1711561858172,-151.0,0.00054188,30]
[320795975,1711561858182,-228.445746,0.00054188,120]
[320795976,1711561858192,-151.0,0.00054188,120]
[320795977,1711561858203,-151.0,0.00054188,120]
[320795978,1711561858212,-204.288628,0.00054188,120]
[320795979,1711561858221,-204.288628,0.00054188,120]
[320795980,1711561858230,-191.520487,0.00054188,120]
[320795981,1711561858239,-151.0,0.00054188,120]
[320795982,1711561858249,-191.520487,0.00054188,120]
[320795983,1711561858258,-250.635261,0.00054188,120]
[320795984,1711561858267,-250.635261,0.00054188,120]
[320795985,1711561858276,-151.576563,0.00054188,120]
[320795986,1711561858286,-240.242065,0.00054188,120]
[320795987,1711561858296,-151.576563,0.00054188,120]
[320795988,1711561858305,-240.242065,0.00054188,120]
[320795989,1711561858332,-151.0,0.00054188,120]
[320795990,1711561858342,-342.284432,0.00054188,120]
[320795991,1711561858351,-342.284432,0.00054188,120]
[320795992,1711561858361,-302.296389,0.00054188,120]
[320795993,1711561858372,-302.296389,0.00054188,120]
[320795994,1711561858382,-151.0,0.00054188,120]
[320795995,1711561858391,-151.0,0.00054188,120]
[320795996,1711561858400,-151.0,0.00054188,120]
[320795997,1711561858410,-151.0,0.00054188,120]
[320795998,1711561858420,-151.0,0.00054188,120]
[320795999,1711561858429,-151.0,0.00054188,120]
[320796000,1711561858438,-151.0,0.00054188,120]
[320796001,1711561858447,-151.0,0.00054188,30]
[320796002,1711561858457,-151.0,0.00054188,120]
[320796003,1711561858469,-479.754063,0.00054188,120]
[320796004,1711561858478,-479.754063,0.00054188,120]
[320796005,1711561858487,-151.0,0.00054188,120]
[320796006,1711561858497,-151.0,0.00054188,120]
[320796007,1711561858507,-165.252325,0.00054188,120]
[320796008,1711561858517,-151.0,0.00054188,7]
[320796009,1711561858526,-151.0,0.00054188,120]
[320796010,1711561858536,-151.0,0.00054188,120]
[320796011,1711561858546,-427200.45055556,0.00054189,30]
[320796012,1711561858556,-72230.34047655,0.00054189,30]
[320796013,1711561858567,-151.0,0.00054189,120]
[320796014,1711561858579,-161.11878669,0.00054189,30]
[320796015,1711561858589,-217.85965091,0.00054193,30]
[320796016,1711561858599,-490.18421455,0.00054199,30]
[320796017,1711561858608,-4388.45672278,0.00054199,30]
[320796018,1711561858619,-190.67491442,0.000542,30]
[320796019,1711561858633,-150.0,0.000542,11]
[320796020,1711561858647,-2435.0,0.0005421,15]
[320796021,1711561858660,-2435.0,0.0005422,15]
[320796022,1711561858670,-181.0,0.0005422,15]
[320796023,1711561858684,-2435.0,0.0005423,15]
[320796024,1711561858698,-181.0,0.0005423,15]
[320796025,1711561858711,-200.25,0.00054232,120]
[320796026,1711561858724,-181.0,0.0005424,15]
[320796027,1711561858738,-1755.94281963,0.00054244,4]
[320796028,1711561858751,-527.61106394,0.00054244,10]
[320796029,1711561858761,-500.0,0.00054245,90]
[320796030,1711561858774,-500.0,0.00054245,90]
[320796031,1711561858787,-1000.0,0.00054245,90]
[320796032,1711561858800,-2000.0,0.00054245,30]
[320796033,1711561858814,-2000.0,0.00054246,120]
[320796034,1711561858827,-500.0,0.00054246,120]
[320796035,1711561858841,-500.0,0.00054246,120]
[320796036,1711561858856,-500.0,0.00054246,120]
[320796037,1711561858868,-444.4667324,0.00054246,120]
[320796038,1711561858881,-500.0,0.00054246,120]
[320796039,1711561858894,-500.0,0.00054246,120]
[320796040,1711561858909,-492.83233146,0.00054246,30]
[320796041,1711561858924,-500.0,0.00054246,120]
[320796042,1711561858938,-225.26759856,0.00054246,2]
[320796043,1711561858953,-500.0,0.00054246,120]
[320796044,1711561858967,-500.0,0.00054246,120]
[320796045,1711561858980,-500.0,0.00054246,120]
[320796046,1711561858993,-500.0,0.00054246,120]
[320796047,1711561859007,-502.16456114,0.00054246,120]
[320796048,1711561859021,-500.0,0.00054246,120]
[320796049,1711561859035,-500.0,0.00054246,120]
[320796050,1711561859048,-500.0,0.00054246,120]
[320796051,1711561859058,-500.33744679,0.00054246,60]
[320796052,1711561859070,-500.0,0.00054246,120]
[320796053,1711561859080,-500.0,0.00054246,120]
[320796054,1711561859092,-500.0,0.00054246,120]
[320796055,1711561859104,-500.0,0.00054246,120]
[320796056,1711561859116,-500.0,0.00054246,120]
[320796057,1711561859128,-563.0,0.00054246,120]
[320796058,1711561859139,-540.0,0.00054246,120]
[320796059,1711561859150,-522.0,0.00054246,120]
[320796060,1711561859162,-500.0,0.00054246,120]
[320796061,1711561859173,-500.70174462,0.00054246,120]
[320796062,1711561859185,-500.0,0.00054246,120]
[320796063,1711561859196,-500.0,0.00054246,120]
[320796064,1711561859208,-500.94474333,0.00054246,120]
[320796065,1711561859219,-500.0,0.00054246,120]
[320796066,1711561859230,-501.11710936,0.00054246,120]
[320796067,1711561859242,-500.0,0.00054246,120]
[320796068,1711561859253,-500.0,0.00054246,120]
[320796069,1711561859266,-501.22129923,0.00054246,2]
[320796070,1711561859277,-501.93516529,0.00054246,120]
[320796071,1711561859287,-505.92570365,0.00054246,120]
[320796072,1711561859298,-500.0,0.00054246,120]
[320796073,1711561859310,-500.0,0.00054246,120]
[320796074,1711561859322,-500.0,0.00054246,120]
[320796075,1711561859332,-500.0,0.00054246,120]
[320796076,1711561859343,-495.64243937,0.00054246,120]
[320796077,1711561859355,-502.00579236,0.00054246,120]
[320796078,1711561859367,-500.0,0.00054246,120]
[320796079,1711561859379,-500.0,0.00054246,120]
[320796080,1711561859392,-500.0,0.00054246,120]
[320796081,1711561859404,-500.0,0.00054246,120]
[320796082,1711561859416,-500.0,0.00054246,120]
[320796083,1711561859427,-501.40112469,0.00054246,120]
[320796084,1711561859439,-500.0,0.00054246,120]
[320796085,1711561859451,-500.0,0.00054246,120]
[320796086,1711561859463,-500.0,0.00054246,120]
[320796087,1711561859475,-500.0,0.00054246,120]
[320796088,1711561859486,-500.0,0.00054246,120]
[320796089,1711561859497,-500.0,0.00054246,120]
[320796090,1711561859508,-317.92,0.00054246,120]
[320796091,1711561859520,-500.0,0.00054246,120]
[320796092,1711561859532,-500.0,0.00054246,120]
[320796093,1711561859542,-155.0,0.00054246,120]
[320796094,1711561859553,-500.0,0.00054246,120]
[320796095,1711561859566,-500.0,0.00054246,120]
[320796096,1711561859577,-500.0,0.00054246,120]
[320796097,1711561859587,-500.0,0.00054246,120]
[320796098,1711561859598,-500.0,0.00054246,120]
[320796099,1711561859610,-503.76982645,0.00054246,120]
[320796100,1711561859620,-631.01,0.00054246,120]
[320796101,1711561859631,-500.0,0.00054246,120]
[320796102,1711561859642,-500.0,0.00054246,120]
[320796103,1711561859653,-500.0,0.00054246,120]
[320796104,1711561859668,-500.0,0.00054246,120]
[320796105,1711561859678,-500.0,0.00054246,120]
[320796106,1711561859690,-500.0,0.00054246,120]
[320796107,1711561859700,-500.0,0.00054246,120]
[320796108,1711561859711,-500.0,0.00054246,120]
[320796109,1711561859722,-500.0,0.00054246,120]
[320796110,1711561859733,-500.0,0.00054246,120]
[320796111,1711561859744,-499.82626297,0.00054246,120]
[320796112,1711561859755,-500.0,0.00054246,120]
[320796113,1711561859766,-500.0,0.00054246,120]
[320796114,1711561859777,-500.0,0.00054246,120]
[320796115,1711561859788,-500.0,0.00054246,120]
[320796116,1711561859799,-500.0,0.00054246,120]
[320796117,1711561859810,-500.0,0.00054246,120]
[320796118,1711561859822,-500.0,0.00054246,120]
[320796119,1711561859834,-500.0,0.00054246,120]
[320796120,1711561859845,-500.0,0.00054246,120]
[320796121,1711561859857,-500.0,0.00054246,120]
[320796122,1711561859869,-500.0,0.00054246,120]
[320796123,1711561859882,-500.0,0.00054246,120]
[320796124,1711561859895,-500.0,0.00054246,120]
[320796125,1711561859906,-500.0,0.00054246,120]
[320796126,1711561859917,-500.0,0.00054246,120]
[320796127,1711561859929,-500.0,0.00054246,120]
[320796128,1711561859940,-500.0,0.00054246,120]
[320796129,1711561859952,-500.0,0.00054246,120]
[320796130,1711561859964,-151.0,0.00054246,120]
[320796131,1711561859976,-500.0,0.00054246,120]
[320796132,1711561859988,-500.0,0.00054246,120]
[320796133,1711561859999,-500.0,0.00054246,120]
[320796134,1711561860012,-500.0,0.00054246,120]
[320796135,1711561860023,-500.0,0.00054246,120]
[320796136,1711561860035,-500.0,0.00054246,120]
[320796137,1711561860046,-500.0,0.00054246,120]
[320796138,1711561860058,-530.38,0.00054246,120]
[320796139,1711561860071,-500.0,0.00054246,120]
[320796140,1711561860082,-500.0,0.00054246,120]
[320796141,1711561860094,-500.0,0.00054246,120]
[320796142,1711561860105,-446.04900024,0.00054246,120]
[320796143,1711561860116,-500.0,0.00054246,120]
[320796144,1711561860127,-504.49233537,0.00054246,120]
[320796145,1711561860138,-500.0,0.00054246,120]
[320796146,1711561860149,-500.0,0.00054246,120]
[320796147,1711561860160,-500.0,0.00054246,120]
[320796148,1711561860171,-500.0,0.00054246,120]
[320796149,1711561860183,-220.82264939,0.00054246,120]
[320796150,1711561860193,-504.02038634,0.00054246,120]
[320796151,1711561860205,-500.0,0.00054246,120]
[320796152,1711561860216,-500.0,0.00054246,120]
[320796153,1711561860227,-500.0,0.00054246,120]
[320796154,1711561860238,-507.41556709,0.00054246,120]
[320796155,1711561860249,-500.0,0.00054246,120]
[320796156,1711561860260,-500.0,0.00054246,120]
[320796157,1711561860271,-500.0,0.00054246,120]
[320796158,1711561860283,-500.0,0.00054246,120]
[320796159,1711561860294,-500.0,0.00054246,120]
[320796160,1711561860306,-500.0,0.00054246,120]
[320796161,1711561860335,-500.0,0.00054246,120]
[320796162,1711561860347,-500.0,0.00054246,120]
[320796163,1711561860359,-500.0,0.00054246,120]
[320796164,1711561860371,-500.0,0.00054246,120]
[320796165,1711561860382,-500.0,0.00054246,120]
[320796166,1711561860393,-500.0,0.00054246,120]
[320796167,1711561860404,-500.0,0.00054246,120]
[320796168,1711561860415,-500.0,0.00054246,120]
[320796169,1711561860426,-500.0,0.00054246,120]
[320796170,1711561860437,-500.0,0.00054246,120]
[320796171,1711561860448,-500.0,0.00054246,120]
[320796172,1711561860459,-500.0,0.00054246,120]
[320796173,1711561860471,-502.32764331,0.00054246,120]
[320796174,1711561860482,-500.0,0.00054246,120]
[320796175,1711561860492,-534.98909465,0.00054246,120]
[320796176,1711561860504,-500.0,0.00054246,120]
[320796177,1711561860516,-500.0,0.00054246,120]
[320796178,1711561860527,-500.0,0.00054246,120]
[320796179,1711561860539,-2000.0,0.00054246,120]
[320796180,1711561860550,-500.0,0.00054246,120]
[320796181,1711561860562,-500.0,0.00054246,120]
[320796182,1711561860574,-506.24247577,0.00054246,120]
[320796183,1711561860586,-500.0,0.00054246,120]
[320796184,1711561860597,-500.0,0.00054246,120]
[320796185,1711561860607,-500.63747682,0.00054246,120]
[320796186,1711561860619,-517.87,0.00054246,120]
[320796187,1711561860630,-499.97357383,0.00054246,120]
[320796188,1711561860642,-500.0,0.00054246,120]
[320796189,1711561860653,-500.0,0.00054246,120]
[320796190,1711561860664,-500.0,0.00054246,120]
[320796191,1711561860675,-151.0,0.00054246,60]
[320796192,1711561860686,-500.0,0.00054246,120]
[320796193,1711561860697,-500.0,0.00054246,120]
[320796194,1711561860708,-500.0,0.00054246,120]
[320796195,1711561860719,-500.0,0.00054246,120]
[320796196,1711561860731,-500.0,0.00054246,120]
[320796197,1711561860742,-736.48,0.00054246,120]
[320796198,1711561860753,-500.0,0.00054246,120]
[320796199,1711561860764,-528.05,0.00054246,120]
[320796200,1711561860775,-155.0,0.00054246,14]
[320796201,1711561860786,-500.0,0.00054246,120]
[320796202,1711561860798,-500.0,0.00054246,120]
[320796203,1711561860809,-500.0,0.00054246,120]
[320796204,1711561860822,-500.0,0.00054246,120]
[320796205,1711561860833,-500.0,0.00054246,120]
[320796206,1711561860844,-500.0,0.00054246,120]
[320796207,1711561860855,-500.0,0.00054246,120]
[320796208,1711561860866,-534.09509691,0.00054246,120]
[320796209,1711561860878,-500.0,0.00054246,120]
[320796210,1711561860889,-500.0,0.00054246,120]
[320796211,1711561860901,-500.0,0.00054246,120]
[320796212,1711561860912,-500.0,0.00054246,120]
[320796213,1711561860924,-500.0,0.00054246,120]
[320796214,1711561860938,-500.0,0.00054246,120]
[320796215,1711561860950,-500.0,0.00054246,120]
[320796216,1711561860961,-500.0,0.00054246,120]
[320796217,1711561860972,-500.0,0.00054246,120]
[320796218,1711561860983,-500.0,0.00054246,120]
[320796219,1711561860994,-1149.15,0.00054246,120]
[320796220,1711561861006,-683.71,0.00054246,120]
[320796221,1711561861017,-500.0,0.00054246,120]
[320796222,1711561861028,-500.0,0.00054246,120]
[320796223,1711561861039,-1000.0,0.00054246,120]
[320796224,1711561861050,-500.0,0.00054246,120]
[320796225,1711561861061,-500.0,0.00054246,120]
[320796226,1711561861073,-500.0,0.00054246,120]
[320796227,1711561861084,-588.63,0.00054246,120]
[320796228,1711561861095,-500.0,0.00054246,120]
[320796229,1711561861106,-500.0,0.00054246,120]
[320796230,1711561861117,-500.0,0.00054246,120]
[320796231,1711561861128,-1653.05,0.00054246,120]
[320796232,1711561861139,-500.0,0.00054246,120]
[320796233,1711561861151,-552.27,0.00054246,120]
[320796234,1711561861162,-500.0,0.00054246,120]
[320796235,1711561861173,-500.0,0.00054246,120]
[320796236,1711561861185,-500.0,0.00054246,120]
[320796237,1711561861196,-721.85,0.00054246,120]
[320796238,1711561861213,-500.0,0.00054246,120]
[320796239,1711561861230,-500.0,0.00054246,120]
[320796240,1711561861240,-758.1,0.00054246,120]
[320796241,1711561861248,-500.0,0.00054246,120]
[320796242,1711561861258,-751.34,0.00054246,120]
[320796243,1711561861267,-500.0,0.00054246,120]
[320796244,1711561861277,-500.0,0.00054246,120]
[320796245,1711561861286,-500.0,0.00054246,120]
[320796246,1711561861295,-500.0,0.00054246,120]
[320796247,1711561861305,-500.0,0.00054246,120]
[320796248,1711561861316,-500.0,0.00054246,120]
[320796249,1711561861325,-500.0,0.00054246,120]
[320796250,1711561861334,-1106.66,0.00054246,120]
[320796251,1711561861344,-500.0,0.00054246,120]
[320796252,1711561861353,-500.0,0.00054246,120]
[320796253,1711561861363,-500.0,0.00054246,15]
[320796254,1711561861372,-667.72,0.00054246,120]
[320796255,1711561861381,-500.0,0.00054246,120]
[320796256,1711561861390,-500.0,0.00054246,120]
[320796257,1711561861777,-546.53,0.00054246,120]
[320796258,1711561861800,-525.52,0.00054246,120]
[320796259,1711561861819,-151.0,0.00054246,30]
[320796260,1711561861841,-500.0,0.00054246,120]
[320796261,1711561861856,-500.0,0.00054246,120]
[320796262,1711561861865,-500.0,0.00054246,120]
[320796263,1711561861875,-500.0,0.00054246,120]
[320796264,1711561861885,-151.0,0.00054246,30]
[320796265,1711561861895,-1650.28,0.00054246,120]
[320796266,1711561861904,-1208.64,0.00054246,120]
[320796267,1711561861914,-500.0,0.00054246,120]
[320796268,1711561861923,-286.02,0.00054246,120]
[320796269,1711561861934,-500.0,0.00054246,120]
[320796270,1711561861944,-500.0,0.00054246,120]
[320796271,1711561861953,-500.0,0.00054246,120]
[320796272,1711561861962,-500.0,0.00054246,120]
[320796273,1711561861971,-1675.07,0.00054246,120]
[320796274,1711561861982,-500.0,0.00054246,120]
[320796275,1711561861992,-500.0,0.00054246,120]
[320796276,1711561862001,-500.0,0.00054246,120]
[320796277,1711561862011,-500.0,0.00054246,120]
[320796278,1711561862020,-500.0,0.00054246,120]
[320796279,1711561862032,-500.0,0.00054246,60]
[320796280,1711561862043,-875.05,0.00054246,120]
[320796281,1711561862052,-500.0,0.00054246,120]
[320796282,1711561862062,-500.0,0.00054246,120]
[320796283,1711561862074,-500.0,0.00054246,120]
[320796284,1711561862082,-500.0,0.00054246,120]
[320796285,1711561862092,-500.0,0.00054246,120]
[320796286,1711561862102,-500.0,0.00054246,120]
[320796287,1711561862113,-500.0,0.00054246,120]
[320796288,1711561862122,-500.0,0.00054246,120]
[320796289,1711561862132,-500.0,0.00054246,120]
[320796290,1711561862142,-500.0,0.00054246,120]
[320796291,1711561862151,-896.37,0.00054246,120]
[320796292,1711561862161,-526.04,0.00054246,120]
[320796293,1711561862171,-500.0,0.00054246,120]
[320796294,1711561862181,-500.0,0.00054246,120]
[320796295,1711561862191,-500.0,0.00054246,120]
[320796296,1711561862201,-774.53,0.00054246,120]
[320796297,1711561862211,-623.96,0.00054246,120]
[320796298,1711561862221,-500.0,0.00054246,120]